[Event "Swedish Chess Championship 2019: Weekend 1"]
[Site "Stiga Sports Arena, Arenatorget 1, Eskilstuna, Sweden"]
[Date "2019.07.06"]
[Round "3.2"]
[White "Nordebrink, Johan"]
[Black "Tolen, Michael"]
[Result "1/2-1/2"]
[TimeControl "90 minutes + 30 seconds per move from move one"]
[WhiteFideId "1706721"]
[BlackFideId "1714376"]
[WhiteElo "2109"]
[BlackElo "2026"]

1. e4 {[%clk 01:30:54]} {[%emt 00:00:05]} e5 {[%clk 01:30:50]} {[%emt
00:00:11]} 2. Nc3 {[%clk 01:30:36]} {[%emt 00:00:48]} Nc6 {[%clk 01:30:44]}
{[%emt 00:00:36]} 3. Nf3 {[%clk 01:30:43]} {[%emt 00:00:22]} Nf6 {[%clk
01:30:37]} {[%emt 00:00:38]} 4. d4 {[%clk 01:30:27]} {[%emt 00:00:46]} exd4
{[%clk 01:30:40]} {[%emt 00:00:28]} 5. Nxd4 {[%clk 01:30:44]} {[%emt 00:00:12]}
Bb4 {[%clk 01:30:11]} {[%emt 00:00:59]} 6. Nxc6 {[%clk 01:31:05]} {[%emt
00:00:08]} bxc6 {[%clk 01:30:22]} {[%emt 00:00:21]} 7. Bd3 {[%clk 01:31:27]}
{[%emt 00:00:07]} d5 {[%clk 01:30:24]} {[%emt 00:00:28]} 8. e5 {[%clk
01:29:41]} {[%emt 00:02:16]} Ng4 {[%clk 01:26:32]} {[%emt 00:04:23]} 9. Bf4
{[%clk 01:30:02]} {[%emt 00:00:08]} f6 {[%clk 01:22:46]} {[%emt 00:04:16]} 10.
h3 {[%clk 01:27:24]} {[%emt 00:03:07]} Nxe5 {[%clk 01:21:42]} {[%emt 00:01:35]}
11. Bxe5 {[%clk 01:27:45]} {[%emt 00:00:08]} fxe5 {[%clk 01:21:59]} {[%emt
00:00:14]} 12. Qh5+ {[%clk 01:28:10]} {[%emt 00:00:05]} Kf8 {[%clk 01:22:15]}
{[%emt 00:00:14]} 13. Qxe5 {[%clk 01:28:29]} {[%emt 00:00:10]} Qe7 {[%clk
01:22:25]} {[%emt 00:00:21]} 14. Qxe7+ {[%clk 01:28:34]} {[%emt 00:00:25]} Kxe7
{[%clk 01:22:35]} {[%emt 00:00:19]} 15. O-O {[%clk 01:26:10]} {[%emt 00:02:54]}
Bd7 {[%clk 01:22:22]} {[%emt 00:00:44]} 16. Ne2 {[%clk 01:21:00]} {[%emt
00:05:40]} Rae8 {[%clk 01:20:32]} {[%emt 00:02:20]} 17. Nd4 {[%clk 01:16:06]}
{[%emt 00:05:24]} c5 {[%clk 01:17:14]} {[%emt 00:03:48]} 18. c3 {[%clk
01:09:55]} {[%emt 00:06:41]} Ba5 {[%clk 01:16:37]} {[%emt 00:01:07]} 19. Nf3
{[%clk 01:07:15]} {[%emt 00:03:09]} Kf6 {[%clk 01:14:37]} {[%emt 00:02:31]} 20.
Rfe1 {[%clk 01:05:50]} {[%emt 00:01:54]} g6 {[%clk 01:14:16]} {[%emt 00:00:52]}
21. Kf1 {[%clk 01:02:14]} {[%emt 00:04:06]} Rxe1+ {[%clk 01:14:23]} {[%emt
00:00:23]} 22. Rxe1 {[%clk 01:02:35]} {[%emt 00:00:08]} Re8 {[%clk 01:14:27]}
{[%emt 00:00:27]} 23. Rxe8 {[%clk 01:02:07]} {[%emt 00:00:58]} 1/2-1/2

[Event "Swedish Chess Championship 2019: Weekend 1"]
[Site "Stiga Sports Arena, Arenatorget 1, Eskilstuna, Sweden"]
[Date "2019.07.06"]
[Round "3.3"]
[White "Namini, Armin"]
[Black "Jakenberg, Jussi"]
[Result "1/2-1/2"]
[TimeControl "90 minutes + 30 seconds per move from move one"]
[WhiteFideId "1706322"]
[BlackFideId "1710931"]
[WhiteElo "2241"]
[BlackElo "2099"]

1. c4 {[%clk 01:20:37]} {[%emt 00:06:23]} e5 {[%clk 01:30:58]} {[%emt
00:00:02]} 2. Nc3 {[%clk 01:21:02]} {[%emt 00:00:05]} Bb4 {[%clk 01:30:47]}
{[%emt 00:00:41]} 3. Nd5 {[%clk 01:21:24]} {[%emt 00:00:08]} a5 {[%clk
01:30:36]} {[%emt 00:00:41]} 4. a3 {[%clk 01:21:28]} {[%emt 00:00:26]} Bc5
{[%clk 01:30:10]} {[%emt 00:00:55]} 5. e3 {[%clk 01:21:54]} {[%emt 00:00:05]}
Nf6 {[%clk 01:29:13]} {[%emt 00:01:27]} 6. d4 {[%clk 01:21:38]} {[%emt
00:00:46]} Nxd5 {[%clk 01:28:26]} {[%emt 00:01:17]} 7. dxc5 {[%clk 01:17:50]}
{[%emt 00:04:18]} Nf6 {[%clk 01:28:49]} {[%emt 00:00:07]} 8. Rb1 {[%clk
01:05:43]} {[%emt 00:12:37]} O-O {[%clk 01:26:44]} {[%emt 00:02:35]} 9. Nf3
{[%clk 01:03:19]} {[%emt 00:02:53]} Qe7 {[%clk 01:26:17]} {[%emt 00:00:57]} 10.
b4 {[%clk 01:01:11]} {[%emt 00:02:39]} axb4 {[%clk 01:25:47]} {[%emt 00:01:00]}
11. axb4 {[%clk 01:01:33]} {[%emt 00:00:08]} d6 {[%clk 01:25:47]} {[%emt
00:00:29]} 12. cxd6 {[%clk 00:58:04]} {[%emt 00:03:59]} cxd6 {[%clk 01:26:15]}
{[%emt 00:00:02]} 13. Qc2 {[%clk 00:53:21]} {[%emt 00:05:13]} Be6 {[%clk
01:18:57]} {[%emt 00:07:48]} 14. Ng5 {[%clk 00:46:16]} {[%emt 00:07:36]} Bd7
{[%clk 01:17:30]} {[%emt 00:01:57]} 15. Bd3 {[%clk 00:43:51]} {[%emt 00:02:54]}
h6 {[%clk 01:16:48]} {[%emt 00:01:13]} 16. Ne4 {[%clk 00:43:35]} {[%emt
00:00:47]} Nxe4 {[%clk 01:11:31]} {[%emt 00:05:47]} 17. Bxe4 {[%clk 00:43:52]}
{[%emt 00:00:12]} Be6 {[%clk 01:12:00]} {[%emt 00:00:01]} 18. Bd5 {[%clk
00:33:58]} {[%emt 00:10:25]} Bxd5 {[%clk 01:00:20]} {[%emt 00:12:10]} 19. cxd5
{[%clk 00:34:21]} {[%emt 00:00:08]} Na6 {[%clk 01:00:10]} {[%emt 00:00:40]} 20.
Bd2 {[%clk 00:29:16]} {[%emt 00:05:34]} Rfc8 {[%clk 00:44:40]} {[%emt
00:16:01]} 21. Qd3 {[%clk 00:26:08]} {[%emt 00:03:38]} Qc7 {[%clk 00:41:46]}
{[%emt 00:03:24]} 22. Ke2 {[%clk 00:22:49]} {[%emt 00:03:49]} Qc4 {[%clk
00:38:05]} {[%emt 00:04:10]} 23. Rhc1 {[%clk 00:18:13]} {[%emt 00:05:07]} Qg4+
{[%clk 00:37:05]} {[%emt 00:01:31]} 24. Kf1 {[%clk 00:18:28]} {[%emt 00:00:15]}
Rxc1+ {[%clk 00:37:25]} {[%emt 00:00:10]} 25. Rxc1 {[%clk 00:18:17]} {[%emt
00:00:40]} Rc8 {[%clk 00:37:51]} {[%emt 00:00:05]} 26. Rxc8+ {[%clk 00:16:45]}
{[%emt 00:02:02]} Qxc8 {[%clk 00:38:19]} {[%emt 00:00:01]} 27. h3 {[%clk
00:15:27]} {[%emt 00:01:48]} Qd7 {[%clk 00:34:27]} {[%emt 00:04:22]} 28. Kg1
{[%clk 00:13:00]} {[%emt 00:02:58]} Qa4 {[%clk 00:30:33]} {[%emt 00:04:24]} 29.
Qc3 {[%clk 00:10:25]} {[%emt 00:03:05]} Qd1+ {[%clk 00:27:14]} {[%emt
00:03:48]} 30. Kh2 {[%clk 00:10:52]} {[%emt 00:00:04]} Kh7 {[%clk 00:27:09]}
{[%emt 00:00:34]} 31. e4 {[%clk 00:06:20]} {[%emt 00:05:02]} Nc7 {[%clk
00:16:02]} {[%emt 00:11:37]} 32. Qxc7 {[%clk 00:03:08]} {[%emt 00:03:42]} Qxd2
{[%clk 00:16:30]} {[%emt 00:00:01]} 33. Qxd6 {[%clk 00:03:27]} {[%emt
00:00:11]} Qf4+ {[%clk 00:16:27]} {[%emt 00:00:33]} 34. Kg1 {[%clk 00:03:54]}
{[%emt 00:00:04]} Qc1+ {[%clk 00:16:50]} {[%emt 00:00:08]} 35. Kh2 {[%clk
00:04:21]} {[%emt 00:00:03]} Qf4+ {[%clk 00:17:07]} {[%emt 00:00:13]} 36. Kg1
{[%clk 00:04:47]} {[%emt 00:00:03]} Qc1+ {[%clk 00:17:13]} {[%emt 00:00:25]}
1/2-1/2

[Event "Swedish Chess Championship 2019: Weekend 1"]
[Site "Stiga Sports Arena, Arenatorget 1, Eskilstuna, Sweden"]
[Date "2019.07.06"]
[Round "3.4"]
[White "Johansson, Roland"]
[Black "Wallgren, Ulf"]
[Result "1/2-1/2"]
[TimeControl "90 minutes + 30 seconds per move from move one"]
[WhiteFideId "1716123"]
[BlackFideId "1706527"]
[WhiteElo "2002"]
[BlackElo "2013"]

1. e4 {[%clk 01:30:57]} {[%emt 00:00:03]} c5 {[%clk 01:30:58]} {[%emt
00:00:03]} 2. Nf3 {[%clk 01:31:21]} {[%emt 00:00:06]} Nc6 {[%clk 01:31:24]}
{[%emt 00:00:04]} 3. d4 {[%clk 01:31:46]} {[%emt 00:00:05]} cxd4 {[%clk
01:31:44]} {[%emt 00:00:10]} 4. Nxd4 {[%clk 01:32:14]} {[%emt 00:00:02]} Nf6
{[%clk 01:31:58]} {[%emt 00:00:15]} 5. Nc3 {[%clk 01:32:38]} {[%emt 00:00:06]}
e5 {[%clk 01:32:24]} {[%emt 00:00:04]} 6. Ndb5 {[%clk 01:33:03]} {[%emt
00:00:05]} h6 {[%clk 01:32:24]} {[%emt 00:00:30]} 7. Nd6+ {[%clk 01:30:50]}
{[%emt 00:02:43]} Bxd6 {[%clk 01:32:39]} {[%emt 00:00:15]} 8. Qxd6 {[%clk
01:31:14]} {[%emt 00:00:06]} Qe7 {[%clk 01:32:56]} {[%emt 00:00:12]} 9. Qxe7+
{[%clk 01:25:45]} {[%emt 00:06:00]} Kxe7 {[%clk 01:33:22]} {[%emt 00:00:03]} 10.
Be3 {[%clk 01:21:11]} {[%emt 00:05:04]} d6 {[%clk 01:33:49]} {[%emt 00:00:04]}
11. f3 {[%clk 01:21:18]} {[%emt 00:00:22]} Be6 {[%clk 01:34:09]} {[%emt
00:00:10]} 12. O-O-O {[%clk 01:21:23]} {[%emt 00:00:25]} a6 {[%clk 01:32:38]}
{[%emt 00:02:01]} 13. Bb6 {[%clk 01:12:14]} {[%emt 00:09:38]} Rac8 {[%clk
01:29:26]} {[%emt 00:03:41]} 14. Be2 {[%clk 01:07:52]} {[%emt 00:04:53]} Nd7
{[%clk 01:11:11]} {[%emt 00:18:45]} 15. Bf2 {[%clk 01:07:23]} {[%emt 00:00:59]}
Nf6 {[%clk 01:01:32]} {[%emt 00:10:08]} 16. Bb6 {[%clk 01:05:26]} {[%emt
00:02:28]} Nd7 {[%clk 00:51:15]} {[%emt 00:10:47]} 17. Bf2 {[%clk 01:04:23]}
{[%emt 00:01:34]} Nf6 {[%clk 00:50:25]} {[%emt 00:01:19]} 1/2-1/2

[Event "Swedish Chess Championship 2019: Weekend 1"]
[Site "Stiga Sports Arena, Arenatorget 1, Eskilstuna, Sweden"]
[Date "2019.07.06"]
[Round "3.5"]
[White "Svorono, Gabriel"]
[Black "Eriksson, Joel"]
[Result "1/2-1/2"]
[TimeControl "90 minutes + 30 seconds per move from move one"]
[WhiteFideId "1715623"]
[BlackFideId "1729233"]
[WhiteElo "2098"]
[BlackElo "1998"]

1. e4 {[%clk 01:30:53]} {[%emt 00:00:06]} e6 {[%clk 01:30:55]} {[%emt
00:00:05]} 2. d4 {[%clk 01:30:45]} {[%emt 00:00:37]} d5 {[%clk 01:31:21]}
{[%emt 00:00:05]} 3. Nc3 {[%clk 01:31:12]} {[%emt 00:00:04]} Nf6 {[%clk
01:31:39]} {[%emt 00:00:13]} 4. e5 {[%clk 01:31:28]} {[%emt 00:00:12]} Nfd7
{[%clk 01:31:58]} {[%emt 00:00:12]} 5. f4 {[%clk 01:31:52]} {[%emt 00:00:05]}
c5 {[%clk 01:32:16]} {[%emt 00:00:13]} 6. Nf3 {[%clk 01:32:10]} {[%emt
00:00:10]} Nc6 {[%clk 01:32:33]} {[%emt 00:00:15]} 7. Be3 {[%clk 01:32:35]}
{[%emt 00:00:04]} Be7 {[%clk 01:32:57]} {[%emt 00:00:07]} 8. Qd2 {[%clk
01:32:57]} {[%emt 00:00:07]} O-O {[%clk 01:33:17]} {[%emt 00:00:11]} 9. O-O-O
{[%clk 01:31:45]} {[%emt 00:01:42]} c4 {[%clk 01:33:16]} {[%emt 00:00:31]} 10.
f5 {[%clk 01:31:58]} {[%emt 00:00:16]} b5 {[%clk 01:32:26]} {[%emt 00:01:22]}
11. fxe6 {[%clk 01:31:01]} {[%emt 00:01:32]} fxe6 {[%clk 01:31:52]} {[%emt
00:00:59]} 12. Nxb5 {[%clk 01:30:12]} {[%emt 00:01:17]} Qb6 {[%clk 01:27:06]}
{[%emt 00:05:17]} 13. Nd6 {[%clk 01:30:02]} {[%emt 00:00:40]} Rb8 {[%clk
01:25:54]} {[%emt 00:01:43]} 14. c3 {[%clk 01:30:06]} {[%emt 00:00:24]} Na5
{[%clk 01:17:32]} {[%emt 00:08:54]} 15. Be2 {[%clk 01:27:10]} {[%emt 00:03:26]}
Bxd6 {[%clk 00:59:41]} {[%emt 00:18:21]} 16. exd6 {[%clk 01:27:04]} {[%emt
00:00:35]} Nf6 {[%clk 00:59:57]} {[%emt 00:00:15]} 17. Rhf1 {[%clk 01:22:29]}
{[%emt 00:05:04]} Bd7 {[%emt 00:07:30]} 18. Ne5 Ba4 19. Rxf6 Rxf6 20. Re1 Qxd6
21. Bf4 Qb6 22. Bg3 Rb7 23. Bg4 Bb3 24. a3 Ba4 25. Kb1 Be8 26. Bh4 Bg6+ 27.
Nxg6 Rxg6 28. Bh5 Rh6 29. g4 Qb3 30. Bg5 Rxh5 31. gxh5 Qxa3 32. Qe2 e5 33. dxe5
{[%clk 00:57:25]} Qxc3 {[%clk 00:42:09]} 34. Rc1 {[%clk 00:20:08]} {[%emt
02:04:57]} Qh3 {[%clk 00:06:16]} 35. Rf1 {[%clk 00:18:20]} {[%emt 00:03:22]} c3
{[%clk 00:05:56]} 36. Bc1 {[%clk 00:14:05]} {[%emt 00:05:40]} Nc4 {[%clk
00:05:52]} 37. Rf3 {[%clk 00:14:05]} Qc8 {[%clk 00:05:52]} 38. Rxc3 {[%clk
00:14:05]} Qf5+ {[%clk 00:05:52]} 39. Qd3 {[%clk 00:14:05]} Qxe5 {[%clk
00:05:52]} 40. h6 {[%clk 00:10:27]} {[%emt 00:11:13]} Nd6 {[%clk 00:01:46]} 41.
Rc5 {[%clk 00:09:53]} {[%emt 00:02:07]} Qe4 42. Rxd5 {[%clk 00:10:10]} Qxd3+
{[%clk 00:01:02]} {[%emt 00:00:39]} 43. Rxd3 {[%clk 00:10:34]} {[%emt
00:00:08]} Nc4 {[%clk 00:01:00]} {[%emt 00:00:46]} 44. Rc3 {[%clk 00:10:08]}
{[%emt 00:01:08]} Na5 {[%clk 00:01:10]} {[%emt 00:04:35]} 45. hxg7 {[%clk
00:10:02]} Kxg7 {[%clk 00:01:19]} 46. Be3 {[%clk 00:08:54]} Kg6 {[%clk
00:01:04]} {[%emt 00:00:04]} 47. Kc2 {[%clk 00:09:14]} Re7 {[%clk 00:00:57]} 48.
b4 {[%clk 00:08:46]} {[%emt 00:00:13]} Nc4 {[%clk 00:00:46]} {[%emt 00:00:40]}
49. Bxa7 {[%clk 00:08:23]} {[%emt 00:00:52]} Rxa7 {[%clk 00:00:49]} {[%emt
00:00:29]} 50. Rxc4 {[%clk 00:08:40]} {[%emt 00:00:13]} Ra2+ {[%clk 00:01:02]}
{[%emt 00:00:17]} 51. Kb3 {[%clk 00:09:01]} {[%emt 00:00:08]} Rxh2 {[%clk
00:01:26]} {[%emt 00:00:07]} 52. b5 {[%clk 00:09:22]} {[%emt 00:00:08]} Rh1
{[%clk 00:01:18]} {[%emt 00:00:39]} 53. Rb4 {[%clk 00:09:12]} {[%emt 00:00:40]}
Rb1+ {[%clk 00:01:16]} {[%emt 00:00:32]} 54. Kc4 {[%clk 00:09:30]} {[%emt
00:00:10]} Rc1+ {[%clk 00:01:38]} {[%emt 00:00:09]} 55. Kd5 {[%clk 00:09:55]}
{[%emt 00:00:04]} Rc8 {[%clk 00:01:57]} {[%emt 00:00:13]} 56. b6 {[%clk
00:09:45]} {[%emt 00:00:39]} h5 {[%clk 00:02:18]} {[%emt 00:00:08]} 57. b7
{[%clk 00:09:58]} {[%emt 00:00:18]} Rb8 {[%clk 00:02:43]} {[%emt 00:00:06]} 58.
Kc6 {[%clk 00:10:10]} {[%emt 00:00:17]} Kg5 {[%clk 00:03:03]} {[%emt 00:00:10]}
59. Kc7 {[%clk 00:10:10]} {[%emt 00:00:30]} Rf8 {[%clk 00:03:19]} {[%emt
00:00:14]} 60. Rd4 {[%clk 00:10:26]} {[%emt 00:00:13]} h4 {[%clk 00:03:22]}
{[%emt 00:00:28]} 61. Rd8 {[%clk 00:10:06]} {[%emt 00:00:49]} Rf7+ {[%clk
00:03:45]} {[%emt 00:00:08]} 62. Rd7 {[%clk 00:10:28]} {[%emt 00:00:07]} Rf8
{[%clk 00:04:04]} {[%emt 00:00:12]} 63. Kc6 {[%clk 00:10:33]} {[%emt 00:00:24]}
Rb8 {[%clk 00:03:20]} {[%emt 00:01:15]} 64. Kc7 {[%clk 00:10:58]} {[%emt
00:00:04]} 1/2-1/2

[Event "Swedish Chess Championship 2019: Weekend 1"]
[Site "Stiga Sports Arena, Arenatorget 1, Eskilstuna, Sweden"]
[Date "2019.07.06"]
[Round "3.6"]
[White "Andric, Jelena"]
[Black "Eriksson, Kristian"]
[Result "1/2-1/2"]
[TimeControl "90 minutes + 30 seconds per move from move one"]
[WhiteTitle "WFM"]
[WhiteFideId "919853"]
[BlackFideId "1705172"]
[WhiteElo "2099"]
[BlackElo "2123"]

1. c4 {[%clk 01:21:22]} {[%emt 00:00:49]} e5 {[%clk 01:30:30]} {[%emt
00:00:30]} 2. Nc3 {[%clk 01:21:17]} {[%emt 00:00:35]} Bb4 {[%clk 01:30:29]}
{[%emt 00:00:30]} 3. Qc2 {[%clk 01:19:50]} {[%emt 00:01:58]} Nf6 {[%clk
01:29:59]} {[%emt 00:01:00]} 4. g3 {[%clk 01:16:59]} {[%emt 00:03:21]} O-O
{[%clk 01:28:42]} {[%emt 00:01:47]} 5. Bg2 {[%clk 01:15:45]} {[%emt 00:01:42]}
Nc6 {[%clk 01:26:15]} {[%emt 00:02:59]} 6. e3 {[%clk 01:12:10]} {[%emt
00:04:05]} Bxc3 {[%clk 01:24:31]} {[%emt 00:02:14]} 7. bxc3 {[%clk 01:10:31]}
{[%emt 00:02:10]} d6 {[%clk 01:22:16]} {[%emt 00:02:44]} 8. Ne2 {[%clk
01:10:13]} {[%emt 00:00:47]} Be6 {[%clk 01:20:34]} {[%emt 00:02:12]} 9. c5
{[%clk 00:49:22]} {[%emt 00:21:23]} dxc5 {[%clk 01:13:55]} {[%emt 00:07:08]} 10.
Bxc6 {[%clk 00:49:03]} {[%emt 00:00:50]} bxc6 {[%clk 01:14:14]} {[%emt
00:00:10]} 11. c4 {[%clk 00:37:32]} {[%emt 00:12:01]} Qd7 {[%clk 00:51:59]}
{[%emt 00:22:44]} 12. f3 {[%clk 00:20:35]} {[%emt 00:17:28]} Bh3 {[%clk
00:45:28]} {[%emt 00:07:00]} 13. Rg1 {[%clk 00:17:10]} {[%emt 00:03:56]} Rfe8
{[%clk 00:28:35]} {[%emt 00:17:23]} 14. Bb2 {[%clk 00:13:21]} {[%emt 00:04:19]}
Rad8 {[%clk 00:27:33]} {[%emt 00:01:31]} 15. O-O-O {[%clk 00:12:28]} {[%emt
00:01:24]} h5 {[%clk 00:26:43]} {[%emt 00:01:19]} 16. Nc3 {[%clk 00:07:37]}
{[%emt 00:05:21]} Bf5 {[%clk 00:18:45]} {[%emt 00:08:28]} 17. e4 {[%clk
00:07:29]} {[%emt 00:00:39]} Bg6 {[%clk 00:18:39]} {[%emt 00:00:35]} 18. Na4
{[%clk 00:07:19]} {[%emt 00:00:40]} Qe7 {[%clk 00:18:04]} {[%emt 00:01:06]} 19.
Ba3 {[%clk 00:07:20]} {[%emt 00:00:29]} Nd7 {[%clk 00:17:03]} {[%emt 00:01:30]}
20. d3 {[%clk 00:06:24]} {[%emt 00:01:27]} Rb8 {[%clk 00:14:11]} {[%emt
00:03:22]} 21. Qf2 {[%clk 00:05:15]} {[%emt 00:01:39]} Rb7 {[%clk 00:13:34]}
{[%emt 00:01:07]} 22. Kc2 {[%clk 00:04:45]} {[%emt 00:01:03]} Reb8 {[%clk
00:13:11]} {[%emt 00:00:50]} 23. Rb1 {[%clk 00:04:53]} {[%emt 00:00:23]} Rxb1
{[%clk 00:10:27]} {[%emt 00:03:12]} 24. Rxb1 {[%clk 00:05:20]} {[%emt
00:00:03]} Rxb1 {[%clk 00:10:51]} {[%emt 00:00:06]} 25. Kxb1 {[%clk 00:05:46]}
{[%emt 00:00:04]} f5 {[%clk 00:08:07]} {[%emt 00:03:14]} 26. Nxc5 {[%clk
00:03:47]} {[%emt 00:02:31]} fxe4 {[%clk 00:07:40]} {[%emt 00:00:57]} 27. fxe4
{[%clk 00:03:48]} {[%emt 00:00:34]} Nf6 {[%clk 00:06:31]} {[%emt 00:01:33]} 28.
h3 {[%clk 00:02:23]} {[%emt 00:01:55]} Qe8 {[%clk 00:06:25]} {[%emt 00:00:35]}
29. Kc2 {[%clk 00:02:13]} {[%emt 00:00:42]} Qc8 {[%clk 00:05:47]} {[%emt
00:01:06]} 30. Qf1 {[%clk 00:02:29]} {[%emt 00:00:15]} Bf7 {[%clk 00:04:55]}
{[%emt 00:01:21]} 31. Qf5 {[%clk 00:02:35]} {[%emt 00:00:24]} Qxf5 {[%clk
00:04:29]} {[%emt 00:00:57]} 32. exf5 {[%clk 00:03:00]} {[%emt 00:00:05]} e4
{[%clk 00:02:21]} {[%emt 00:02:38]} 33. dxe4 {[%clk 00:01:47]} {[%emt
00:01:43]} Bxc4 {[%clk 00:02:43]} {[%emt 00:00:07]} 34. e5 {[%clk 00:01:49]}
{[%emt 00:00:29]} Nd5 {[%clk 00:02:34]} {[%emt 00:00:37]} 35. Bc1 {[%clk
00:01:23]} {[%emt 00:01:08]} Bxa2 {[%clk 00:02:05]} {[%emt 00:01:27]} 36. g4
{[%clk 00:01:34]} {[%emt 00:00:18]} hxg4 {[%clk 00:01:51]} {[%emt 00:04:50]} 37.
hxg4 {[%clk 00:02:03]} Bc4 {[%clk 00:02:00]} 38. e6 {[%clk 00:02:09]} Be2
{[%clk 00:02:02]} 39. g5 {[%clk 00:02:09]} Bg4 {[%clk 00:02:13]} 40. f6 gxf6
{[%clk 00:02:14]} 41. gxf6 {[%clk 00:02:28]} Nxf6 {[%clk 00:02:05]} 42. Bg5
{[%clk 00:02:21]} Bf5+ {[%clk 00:01:38]} {[%emt 00:00:42]} 43. Kb3 {[%clk
00:02:25]} {[%emt 00:00:27]} Ne4 {[%clk 00:01:01]} {[%emt 00:01:05]} 44. Nxe4
{[%clk 00:02:45]} {[%emt 00:00:12]} Bxe4 {[%clk 00:01:22]} {[%emt 00:00:08]} 45.
e7 {[%clk 00:02:13]} {[%emt 00:01:02]} Kf7 {[%clk 00:01:44]} {[%emt 00:00:07]}
1/2-1/2

[Event "Swedish Chess Championship 2019: Weekend 1"]
[Site "Stiga Sports Arena, Arenatorget 1, Eskilstuna, Sweden"]
[Date "2019.07.06"]
[Round "3.7"]
[White "Wallenas, Joakim"]
[Black "Thollin, Robert"]
[Result "0-1"]
[TimeControl "90 minutes + 30 seconds per move from move one"]
[WhiteFideId "1728458"]
[BlackFideId "1701630"]
[WhiteElo "1991"]
[BlackElo "1983"]

1. e4 {[%clk 01:30:56]} {[%emt 00:00:02]} d6 {[%clk 01:30:26]} {[%emt
00:00:34]} 2. d4 {[%clk 01:31:14]} {[%emt 00:00:14]} Nf6 {[%clk 01:30:46]}
{[%emt 00:00:10]} 3. Nc3 {[%clk 01:31:19]} {[%emt 00:00:25]} g6 {[%clk
01:31:08]} {[%emt 00:00:07]} 4. Bc4 {[%clk 01:30:45]} {[%emt 00:01:05]} Bg7
{[%clk 01:31:29]} {[%emt 00:00:08]} 5. Be3 {[%clk 01:29:03]} {[%emt 00:02:12]}
Nc6 {[%clk 01:30:33]} {[%emt 00:01:25]} 6. h3 {[%clk 01:25:31]} {[%emt
00:04:03]} O-O {[%clk 01:17:41]} {[%emt 00:13:21]} 7. Bb3 {[%clk 01:22:28]}
{[%emt 00:03:34]} a6 {[%clk 01:08:51]} {[%emt 00:09:21]} 8. Nf3 {[%clk
01:19:05]} {[%emt 00:03:53]} Nd7 {[%clk 00:51:19]} {[%emt 00:18:01]} 9. Ne2
{[%clk 01:15:21]} {[%emt 00:04:15]} Na5 {[%clk 00:50:28]} {[%emt 00:01:21]} 10.
c3 {[%clk 01:15:00]} {[%emt 00:00:51]} Nxb3 {[%clk 00:50:41]} {[%emt 00:00:16]}
11. axb3 {[%clk 01:14:55]} {[%emt 00:00:35]} e5 {[%clk 00:46:07]} {[%emt
00:05:03]} 12. O-O {[%clk 01:11:56]} {[%emt 00:03:31]} h6 {[%clk 00:43:31]}
{[%emt 00:03:05]} 13. Qd2 {[%clk 01:03:24]} {[%emt 00:09:03]} Kh7 {[%clk
00:43:46]} {[%emt 00:00:14]} 14. Ng3 {[%clk 00:58:54]} {[%emt 00:05:00]} Qe7
{[%clk 00:40:38]} {[%emt 00:03:38]} 15. Nh2 {[%clk 00:50:01]} {[%emt 00:09:24]}
Nf6 {[%clk 00:37:28]} {[%emt 00:03:39]} 16. d5 {[%clk 00:44:21]} {[%emt
00:06:11]} Nxe4 {[%clk 00:34:32]} {[%emt 00:03:25]} 17. Nxe4 {[%clk 00:41:40]}
{[%emt 00:03:11]} f5 {[%clk 00:34:54]} {[%emt 00:00:08]} 18. f3 {[%clk
00:39:11]} {[%emt 00:03:00]} fxe4 {[%clk 00:34:59]} {[%emt 00:00:25]} 19. fxe4
{[%clk 00:39:35]} {[%emt 00:00:06]} Bd7 {[%clk 00:34:48]} {[%emt 00:00:40]} 20.
c4 {[%clk 00:37:27]} {[%emt 00:02:39]} Qh4 {[%clk 00:24:49]} {[%emt 00:10:28]}
21. Qc2 {[%clk 00:32:58]} {[%emt 00:04:59]} Bxh3 {[%clk 00:20:33]} {[%emt
00:04:46]} 22. Kh1 {[%emt 00:10:37]} Bd7 {[%clk 00:18:48]} {[%emt 00:02:15]} 23.
Rf3 {[%clk 00:19:53]} {[%emt 00:03:30]} g5 {[%clk 00:15:46]} {[%emt 00:03:30]}
24. Raf1 {[%clk 00:16:53]} {[%emt 00:03:32]} g4 {[%clk 00:13:13]} {[%emt
00:03:02]} 25. Bf2 {[%clk 00:15:46]} {[%emt 00:01:37]} Qh5 {[%clk 00:12:51]}
{[%emt 00:00:55]} 26. Rg3 {[%clk 00:14:33]} {[%emt 00:01:41]} Rf4 {[%clk
00:11:47]} {[%emt 00:01:33]} 27. Kg1 {[%clk 00:14:14]} {[%emt 00:00:50]} Qg6
{[%clk 00:18:27]} {[%emt 00:01:29]} 28. Re3 {[%clk 00:13:50]} {[%emt 00:00:55]}
Raf8 {[%clk 00:07:20]} {[%emt 00:03:56]} 29. g3 {[%clk 00:13:26]} {[%emt
00:00:54]} R4f6 {[%clk 00:07:09]} {[%emt 00:00:41]} 30. b4 {[%clk 00:11:49]}
{[%emt 00:02:08]} h5 {[%clk 00:06:47]} {[%emt 00:00:51]} 31. Re2 {[%clk
00:10:04]} {[%emt 00:02:16]} h4 {[%clk 00:06:01]} {[%emt 00:01:16]} 32. Qd3
{[%clk 00:09:35]} {[%emt 00:00:59]} Rf3 {[%clk 00:03:26]} {[%emt 00:03:04]} 33.
Re3 {[%clk 00:05:30]} {[%emt 00:04:37]} Rxe3 {[%clk 00:02:54]} {[%emt
00:01:02]} 34. Qxe3 {[%clk 00:05:41]} {[%emt 00:00:19]} Bh6 {[%clk 00:03:20]}
{[%emt 00:00:03]} 35. Qe1 {[%clk 00:04:13]} {[%emt 00:01:58]} h3 {[%clk
00:03:09]} {[%emt 00:00:41]} 36. Be3 {[%clk 00:03:41]} {[%emt 00:01:03]} Qxe4
{[%clk 00:02:15]} {[%emt 00:01:32]} 0-1